[Event "FEXERJ State Masters-ch 2024"]
[Site "Rio de Janeiro"]
[Date "2024.05.30"]
[Round "1.1"]
[White "Laba, Otavio De Souza"]
[Black "Rangel, Daniel"]
[Result "0-1"]
[ECO "E06"]
[WhiteElo "1879"]
[BlackElo "2161"]
[Annotator "RC"]
[PlyCount "48"]
[EventDate "2024.05.15"]
[EventType "swiss"]
[EventCountry "BRA"]
[SourceTitle "playchess.com"]
[Source "ChessBase"]
[SourceQuality "1"]
[TimeControl "5400+30"]

1. d4 {[%emt 0:00:03]} Nf6 {[%emt 0:01:07]} 2. c4 {[%emt 0:00:10]} e6 {[%emt 0:00:19]} 3. Nf3 {[%emt 0:00:19]} d5 {[%emt 0:00:10]} 4. g3 {[%emt 0:00:09]} Be7 {[%emt 0:00:07]} 5. Bg2 {[%emt 0:00:31]} O-O {[%emt 0:00:22]} 6. O-O {[%emt 0:00:13]} a5 {[%emt 0:00:04]} 7. Nc3 {[%emt 0:01:22]} c6 {[%emt 0:00:07]} 8. b3 {[%emt 0:02:08]} b6 {[%emt 1:32:14]} 9. cxd5 {[%emt 0:00:58]} cxd5 {[%emt 0:00:00]} 10. Bf4 {[%emt 0:00:58]} Ba6 {[%emt 0:00:00]} 11. Re1 {[%emt 0:02:06]} Bb4 {[%emt 0:00:00]} 12. Bd2 {[%emt 0:01:12]} Nc6 {[%emt 0:00:00]} 13. a3 {[%emt 0:00:58]} Bd6 {[%emt 0:00:00]} 14. e4 {[%emt 0:02:48]} Nxe4 {[%emt 0:00:00]} 15. Nxe4 {[%emt 0:00:36]} dxe4 {[%emt 0:00:00]} 16. Ng5 {[%emt 0:00:53]} Be7 {[%emt 0:00:00]} 17. Nxh7 {[%emt 0:00:16]} Re8 {[%emt 0:00:00]} 18. Bxe4 {[%emt 0:00:42]} Nxd4 {[%emt 0:05:00]} 19. Qh5 {[%emt 1:23:38]} f5 {[%emt 0:00:30]} 20. Bh6 {[%emt 0:00:30]} fxe4 {[%emt 0:00:00]} 21. Qg6 {[%emt 0:00:00]} Bf6 {[%emt 0:00:00]} 22. Ng5 Nf3+ {[%emt 0:01:30]} 23. Nxf3 {[%emt 0:00:00]} exf3 {[%emt 0:00:00]} 24. Rad1 {[%emt 0:00:00]} Qe7 {[%emt 0:00:00]} 0-1

[Event "FEXERJ State Masters-ch 2024"]
[Site "Rio de Janeiro"]
[Date "2024.05.30"]
[Round "1.2"]
[White "Guimaraes, Wagner Peixoto"]
[Black "Barros, Angelo Costa"]
[Result "1/2-1/2"]
[ECO "B51"]
[WhiteElo "2142"]
[BlackElo "1824"]
[Annotator "NA RC"]
[PlyCount "101"]
[EventDate "2024.05.15"]
[EventType "swiss"]
[EventCountry "BRA"]
[SourceTitle "playchess.com"]
[Source "ChessBase"]
[SourceQuality "1"]
[TimeControl "5400+30"]

1. e4 {[%emt 0:06:17]} c5 {[%emt 0:00:08]} 2. Nf3 {[%emt 0:00:07]} d6 {[%emt 0:00:08]} 3. Bb5+ {[%emt 0:00:56]} Nd7 {[%emt 0:04:29]} 4. d4 {[%emt 0:03:01]} cxd4 {[%emt 0:00:08]} 5. Qxd4 {[%emt 0:00:06]} Ngf6 {[%emt 0:01:12]} 6. O-O {[%emt 0:07:01]} e5 {[%emt 0:00:14]} 7. Qd3 {[%emt 0:00:29]} h6 {[%emt 0:00:06]} 8. c4 {[%emt 0:03:29]} Be7 {[%emt 0:00:11]} 9. Be3 {[%emt 0:08:42]} O-O {[%emt 0:00:30]} 10. Nc3 {[%emt 0:02:04]} a6 {[%emt 0:01:14]} 11. Ba4 {[%emt 0:05:37]} Nb6 {[%emt 0:16:54]} 12. Bb3 {[%emt 0:08:35]} Be6 {[%emt 0:08:38]} 13. Rfd1 Qc7 {[%emt 0:05:11]} 14. Nd5 {[%emt 0:07:32]} Bxd5 {[%emt 0:00:20]} 15. cxd5 {[%emt 0:01:04]} Rfc8 16. Rac1 {[%emt 0:11:00]} Qd8 {[%emt 0:13:02]} 17. Nh4 {[%emt 0:02:50]} Ng4 18. Rxc8 {[%emt 0:00:26]} Rxc8 {[%emt 0:00:43]} 19. Nf5 Nxe3 {[%emt 0:00:11]} 20. Qxe3 {[%emt 0:12:55]} Bf8 {[%emt 0:01:35]} 21. Rc1 {[%emt 0:02:48]} Nd7 22. Rc3 {[%emt 0:01:04]} Kh7 {[%emt 0:16:19]} 23. Qf3 g6 {[%emt 0:30:47]} 24. Ng3 {[%emt 0:16:27]} Kg7 {[%emt 0:00:00]} 25. Qg4 {[%emt 0:00:00]} Rxc3 26. bxc3 Qc7 {[%emt 0:01:30]} 27. h3 {[%emt 0:01:30]} Nf6 {[%emt 0:00:00]} 28. Qf3 {[%emt 0:00:30]} Be7 {[%emt 0:01:00]} 29. Nf1 {[%emt 0:00:00]} Qc5 {[%emt 0:00:00]} 30. Ne3 {[%emt 0:00:00]} Bd8 {[%emt 0:00:00]} 31. g3 {[%emt 0:00:00]} Kf8 32. Ng4 {[%emt 0:02:00]} Nxg4 {[%emt 0:00:00]} 33. hxg4 {[%emt 0:00:00]} Bb6 {[%emt 0:00:00]} 34. Qf6 {[%emt 0:00:00]} Kg8 {[%emt 0:00:00]} 35. Qf3 {[%emt 0:00:00]} Kg7 {[%emt 0:00:00]} 36. Kg2 {[%emt 0:00:00]} Ba5 37. c4 {[%emt 0:00:00]} Bb6 {[%emt 0:00:00]} 38. Kg1 {[%emt 0:00:00]} Qd4 39. Kg2 {[%emt 0:00:42]} Qd2 {[%emt 0:00:00]} 40. Kf1 {[%emt 0:01:49]} Kf8 {[%emt 0:00:00]} 41. Qe2 {[%emt 0:00:22]} Qd4 {[%emt 0:00:00]} 42. Kg2 {[%emt 0:00:32]} Ke7 {[%emt 0:00:00]} 43. Kg1 {[%emt 0:00:11]} Qa1+ 44. Kg2 {[%emt 0:01:17]} Bd4 45. Qd2 {[%emt 0:01:37]} Kd7 {[%emt 0:08:30]} 46. Qe2 {[%emt 0:00:30]} Qc1 {[%emt 0:00:00]} 47. Qf3 {[%emt 0:00:30]} Ke7 {[%emt 0:00:00]} 48. Qe2 {[%emt 0:00:00]} Qc3 {[%emt 0:00:00]} 49. Kh2 {[%emt 0:00:00]} Kd8 {[%emt 0:00:00]} 50. Kg2 {[%emt 0:00:27]} Ke7 {[%emt 0:02:30]} 51. Qd1 {[%emt 0:01:33]} 1/2-1/2

[Event "FEXERJ State Masters-ch 2024"]
[Site "Rio de Janeiro"]
[Date "2024.05.30"]
[Round "1.4"]
[White "Salles, Marvio Darilho"]
[Black "Leal, Kaue Dos Santos"]
[Result "1-0"]
[ECO "B25"]
[WhiteElo "2072"]
[BlackElo "1779"]
[Annotator "NA RC"]
[PlyCount "62"]
[EventDate "2024.05.15"]
[EventType "swiss"]
[EventCountry "BRA"]
[SourceTitle "playchess.com"]
[Source "ChessBase"]
[SourceQuality "1"]
[TimeControl "5400+30"]

1. e4 {[%emt 0:11:14]} c5 {[%emt 0:00:17]} 2. Nc3 {[%emt 0:00:06]} Nc6 {[%emt 0:00:52]} 3. g3 {[%emt 0:00:36]} g6 {[%emt 0:00:58]} 4. Bg2 {[%emt 0:00:02]} Bg7 {[%emt 0:00:21]} 5. f4 {[%emt 0:00:10]} d6 {[%emt 0:01:00]} 6. Nf3 {[%emt 0:00:11]} Nf6 {[%emt 0:02:43]} 7. O-O {[%emt 0:00:16]} a6 {[%emt 0:00:08]} 8. a4 {[%emt 0:00:29]} O-O {[%emt 0:00:50]} 9. d3 {[%emt 0:00:10]} Qc7 {[%emt 0:02:02]} 10. h3 {[%emt 0:02:12]} b6 {[%emt 0:02:26]} 11. Nh4 {[%emt 0:02:32]} Bb7 {[%emt 0:06:14]} 12. g4 {[%emt 0:08:38]} Nd4 {[%emt 0:03:13]} 13. Ne2 {[%emt 0:01:40]} Nxe2+ {[%emt 0:01:48]} 14. Qxe2 {[%emt 0:00:04]} Nd7 {[%emt 0:02:50]} 15. f5 {[%emt 0:01:03]} b5 {[%emt 1:12:18]} 16. c3 {[%emt 1:09:07]} b4 {[%emt 0:00:00]} 17. Bd2 {[%emt 0:00:00]} a5 18. Rab1 {[%emt 0:00:00]} Nb6 19. cxb4 {[%emt 0:00:00]} axb4 {[%emt 0:00:00]} 20. b3 {[%emt 0:00:00]} Nd7 {[%emt 0:00:00]} 21. Nf3 {[%emt 0:00:00]} Ba6 22. Bf4 {[%emt 0:00:00]} Rad8 23. Nd2 {[%emt 0:03:30]} Ne5 {[%emt 0:04:00]} 24. Nc4 {[%emt 0:00:00]} Nc6 {[%emt 0:00:00]} 25. Kh1 {[%emt 0:00:00]} Nd4 {[%emt 0:00:00]} 26. Qd1 {[%emt 0:00:00]} Bb7 {[%emt 0:00:00]} 27. Rf2 {[%emt 0:00:00]} Bc6 28. Qf1 {[%emt 0:00:00]} Qa7 29. Ne3 {[%emt 0:00:00]} Ba8 {[%emt 0:00:00]} 30. Nc4 {[%emt 0:00:00]} Nc6 31. Bg5 {[%emt 0:00:00]} Ne5 {[%emt 0:00:00]} 1-0

[Event "FEXERJ State Masters-ch 2024"]
[Site "Rio de Janeiro"]
[Date "2024.05.30"]
[Round "2.3"]
[White "Chaves, Jorge Antonio Torres"]
[Black "Salles, Marvio Darilho"]
[Result "0-1"]
[ECO "A48"]
[WhiteElo "1918"]
[BlackElo "2072"]
[Annotator "RC"]
[PlyCount "129"]
[EventDate "2024.05.15"]
[EventType "swiss"]
[EventCountry "BRA"]
[SourceTitle "playchess.com"]
[Source "ChessBase"]
[SourceQuality "1"]
[TimeControl "5400+30"]

1. d4 {[%emt 1:31:00]} Nf6 {[%emt 0:08:28]} 2. Nf3 {[%emt 0:00:00]} g6 {[%emt 0:00:00]} 3. Bf4 {[%emt 0:00:00]} Bg7 4. e3 {[%emt 0:00:00]} O-O 5. Be2 {[%emt 0:00:00]} d6 6. h4 {[%emt 0:02:30]} Bg4 {[%emt 1:25:02]} 7. Nc3 {[%emt 0:00:30]} c6 {[%emt 0:00:30]} 8. Qd2 {[%emt 0:00:30]} b5 {[%emt 0:00:30]} 9. a3 {[%emt 0:00:00]} a5 {[%emt 0:00:00]} 10. Ng5 Bxe2 {[%emt 0:01:00]} 11. Qxe2 {[%emt 0:00:00]} h6 {[%emt 0:00:00]} 12. Nf3 {[%emt 0:00:00]} Nbd7 {[%emt 0:00:00]} 13. h5 {[%emt 0:00:00]} Nxh5 {[%emt 0:00:00]} 14. Rxh5 gxh5 {[%emt 0:00:00]} 15. Ne4 {[%emt 0:00:00]} f5 16. Ned2 {[%emt 0:00:00]} e5 17. dxe5 dxe5 {[%emt 0:00:00]} 18. Bg3 Qf6 {[%emt 0:04:00]} 19. Bh4 {[%emt 0:00:00]} Qf7 {[%emt 0:00:00]} 20. O-O-O {[%emt 0:00:00]} e4 {[%emt 0:00:00]} 21. Nd4 Qa2 {[%emt 0:00:00]} 22. Nb1 {[%emt 0:00:00]} Ne5 23. Nc3 {[%emt 0:00:00]} Qa1+ {[%emt 0:00:00]} 24. Nb1 {[%emt 0:00:00]} Nc4 25. c3 {[%emt 0:08:30]} a4 {[%emt 0:00:00]} 26. Be7 Rf7 {[%emt 0:00:00]} 27. Bc5 {[%emt 0:00:00]} Ne5 {[%emt 0:00:00]} 28. Ne6 {[%emt 0:00:00]} Nd3+ {[%emt 0:00:00]} 29. Rxd3 exd3 {[%emt 0:00:00]} 30. Qxd3 {[%emt 0:00:00]} Qa2 {[%emt 0:00:00]} 31. Nxg7 {[%emt 0:00:00]} Kxg7 {[%emt 0:00:00]} 32. Bd4+ {[%emt 0:00:00]} Kh7 {[%emt 0:00:00]} 33. Qe2 {[%emt 0:00:00]} Rg8 {[%emt 0:00:00]} 34. Qf3 Qe6 {[%emt 0:00:00]} 35. Nd2 {[%emt 0:00:00]} Qg6 {[%emt 0:00:00]} 36. g3 {[%emt 0:00:00]} Rd8 {[%emt 0:00:00]} 37. c4 {[%emt 0:00:00]} Rfd7 38. c5 {[%emt 0:06:30]} Rxd4 {[%emt 0:00:00]} 39. exd4 {[%emt 0:00:00]} Rxd4 {[%emt 0:00:00]} 40. Qe3 Qf6 {[%emt 0:00:00]} 41. Nf3 {[%emt 0:00:00]} Rc4+ 42. Kb1 {[%emt 0:00:00]} Re4 43. Qd3 {[%emt 0:00:00]} Re7 {[%emt 0:00:00]} 44. Nh4 Re1+ {[%emt 0:13:00]} 45. Kc2 {[%emt 0:03:30]} Qe6 {[%emt 0:00:30]} 46. Qxf5+ {[%emt 0:00:00]} Qxf5+ {[%emt 0:00:00]} 47. Nxf5 {[%emt 0:00:00]} Re2+ {[%emt 0:00:00]} 48. Kc3 {[%emt 0:00:00]} Rxf2 {[%emt 0:00:00]} 49. Nd4 {[%emt 0:00:00]} Rf6 {[%emt 0:00:00]} 50. Kb4 {[%emt 0:00:19]} Kg6 {[%emt 0:00:00]} 51. Nxb5 cxb5 {[%emt 0:00:00]} 52. Kxb5 {[%emt 0:03:11]} Kg5 {[%emt 0:03:30]} 53. Kxa4 {[%emt 0:00:00]} Kg4 {[%emt 0:00:00]} 54. b4 Kxg3 {[%emt 0:00:00]} 55. b5 h4 {[%emt 0:01:30]} 56. b6 {[%emt 0:00:00]} h3 {[%emt 0:00:00]} 57. b7 {[%emt 0:00:06]} Rf8 {[%emt 0:00:00]} 58. c6 h2 {[%emt 0:01:30]} 59. c7 {[%emt 0:00:45]} h1=Q {[%emt 0:00:00]} 60. b8=Q {[%emt 0:01:04]} Rf4+ 61. Ka5 {[%emt 0:02:35]} Qd5+ {[%emt 0:01:30]} 62. Qb5 {[%emt 0:00:00]} Qa8+ {[%emt 0:00:00]} 63. Kb6 {[%emt 0:00:00]} Rf6+ {[%emt 0:00:00]} 64. Kc5 {[%emt 0:01:30]} Rf5+ {[%emt 0:01:30]} 65. Kd4 {[%emt 0:00:30]} 0-1

[Event "FEXERJ State Masters-ch 2024"]
[Site "Rio de Janeiro"]
[Date "2024.05.30"]
[Round "2.4"]
[White "Fernandes, Silas Carvalho"]
[Black "Fernandes, Felipe Gambini"]
[Result "1-0"]
[ECO "E18"]
[WhiteElo "2043"]
[BlackElo "1893"]
[Annotator "RC"]
[PlyCount "73"]
[EventDate "2024.05.15"]
[EventType "swiss"]
[EventCountry "BRA"]
[SourceTitle "playchess.com"]
[Source "ChessBase"]
[SourceQuality "1"]
[TimeControl "5400+30"]

1. Nf3 Nf6 2. d4 b6 3. g3 Bb7 4. Bg2 e6 5. O-O Be7 6. c4 O-O 7. Nc3 d6 8. Qd3 Nbd7 9. Rd1 c5 10. d5 e5 11. Nh4 Re8 12. Nf5 Nf8 13. Bg5 Bc8 14. Nxe7+ Qxe7 15. Ne4 Bf5 16. Bxf6 gxf6 17. Qf3 Bxe4 18. Qxe4 Qd7 19. Qh4 Qf5 20. Be4 Qg5 21. Qh3 Ng6 22. Rd3 h5 {[%emt 1:41:30]} 23. Kh1 {[%emt 0:11:30]} Ne7 {[%emt 0:00:30]} 24. Bf3 {[%emt 0:00:30]} Qf5 {[%emt 0:00:30]} 25. g4 {[%emt 0:00:30]} hxg4 {[%emt 0:00:30]} 26. Bxg4 {[%emt 0:00:30]} Qh7 {[%emt 0:00:30]} 27. Qg2 {[%emt 0:00:30]} Kf8 {[%emt 0:00:30]} 28. Rh3 {[%emt 0:00:30]} Qc2 {[%emt 0:00:30]} 29. Rh8+ {[%emt 0:00:30]} Ng8 {[%emt 0:00:30]} 30. Rxg8+ {[%emt 0:00:30]} Ke7 {[%emt 0:00:30]} 31. Rxe8+ {[%emt 0:00:30]} Rxe8 {[%emt 0:00:30]} 32. b3 {[%emt 0:00:30]} Rg8 {[%emt 0:00:30]} 33. Qf3 {[%emt 0:00:30]} Qb2 {[%emt 0:00:30]} 34. Rg1 {[%emt 0:00:30]} Qxa2 {[%emt 0:00:30]} 35. Qf5 {[%emt 0:00:30]} Rd8 {[%emt 0:00:30]} 36. Rg3 {[%emt 0:00:30]} a5 {[%emt 0:00:30]} 37. Rf3 {[%emt 0:00:30]} 1-0

[Event "FEXERJ State Masters-ch 2024"]
[Site "Rio de Janeiro"]
[Date "2024.06.01"]
[Round "3.1"]
[White "Fernandes, Silas Carvalho"]
[Black "Rangel, Daniel"]
[Result "0-1"]
[ECO "E62"]
[WhiteElo "2043"]
[BlackElo "2161"]
[Annotator "RC"]
[PlyCount "85"]
[EventDate "2024.05.15"]
[EventType "swiss"]
[EventCountry "BRA"]
[SourceTitle "playchess.com"]
[Source "ChessBase"]
[SourceQuality "1"]
[TimeControl "5400+30"]

1. Nf3 {[%emt 0:08:27]} Nf6 {[%emt 0:00:52]} 2. d4 {[%emt 0:00:30]} g6 {[%emt 0:00:30]} 3. g3 {[%emt 0:00:30]} Bg7 {[%emt 0:00:30]} 4. Bg2 {[%emt 0:00:30]} O-O {[%emt 0:00:30]} 5. O-O {[%emt 0:00:30]} d6 {[%emt 0:00:30]} 6. c4 {[%emt 0:00:30]} c6 {[%emt 0:00:30]} 7. Nc3 {[%emt 0:00:30]} Bf5 {[%emt 0:00:30]} 8. Re1 {[%emt 0:00:30]} Ne4 {[%emt 0:00:30]} 9. Nxe4 {[%emt 0:00:30]} Bxe4 {[%emt 0:00:30]} 10. Nh4 {[%emt 0:00:30]} Bxg2 {[%emt 0:00:30]} 11. Kxg2 {[%emt 0:00:30]} Nd7 {[%emt 0:00:30]} 12. Nf3 {[%emt 0:00:30]} e5 {[%emt 0:00:30]} 13. dxe5 {[%emt 0:00:30]} dxe5 {[%emt 0:00:30]} 14. e4 {[%emt 0:00:30]} Nc5 {[%emt 0:00:30]} 15. Qc2 {[%emt 0:00:30]} Ne6 {[%emt 0:00:30]} 16. Be3 {[%emt 0:00:30]} c5 {[%emt 0:00:30]} 17. Rad1 {[%emt 0:00:30]} Nd4 {[%emt 0:00:30]} 18. Bxd4 {[%emt 0:00:30]} exd4 {[%emt 0:00:30]} 19. Qd3 {[%emt 0:00:30]} Qb6 {[%emt 0:00:30]} 20. Re2 {[%emt 0:00:30]} Qc6 {[%emt 0:00:30]} 21. Kg1 {[%emt 0:00:30]} a6 {[%emt 0:00:30]} 22. b3 {[%emt 0:00:30]} b5 {[%emt 0:00:30]} 23. Rde1 {[%emt 0:00:30]} Bh6 {[%emt 0:00:30]} 24. Ne5 {[%emt 0:00:30]} Qe6 {[%emt 0:00:30]} 25. Nf3 {[%emt 0:00:30]} bxc4 {[%emt 0:00:30]} 26. bxc4 {[%emt 0:00:30]} Rab8 {[%emt 0:00:30]} 27. Rc2 {[%emt 0:00:30]} Rb4 {[%emt 0:00:30]} 28. Kg2 {[%emt 0:00:30]} Rfb8 {[%emt 0:00:30]} 29. Ng1 {[%emt 0:00:30]} Qc6 {[%emt 0:00:30]} 30. f4 {[%emt 0:00:30]} Qa4 {[%emt 0:00:30]} 31. Rec1 {[%emt 0:00:30]} Rb2 {[%emt 0:00:30]} 32. Qd2 {[%emt 0:00:30]} Qxa2 {[%emt 0:00:30]} 33. Kh3 {[%emt 0:00:30]} a5 {[%emt 0:00:30]} 34. Nf3 {[%emt 0:00:30]} Rxc2 {[%emt 0:00:30]} 35. Rxc2 {[%emt 0:00:30]} Qb1 {[%emt 0:00:30]} 36. Ne5 {[%emt 0:00:30]} Bg7 {[%emt 0:00:30]} 37. Nd7 {[%emt 0:00:30]} Rc8 {[%emt 0:00:30]} 38. e5 {[%emt 0:00:30]} Qb7 {[%emt 0:00:30]} 39. Nf6+ {[%emt 0:00:30]} Bxf6 {[%emt 0:00:30]} 40. exf6 {[%emt 0:00:30]} Qa6 {[%emt 0:00:30]} 41. Ra2 {[%emt 0:00:30]} Qxf6 {[%emt 0:00:30]} 42. Ra4 {[%emt 0:00:30]} Qe6+ {[%emt 0:00:30]} 43. Kg2 {[%emt 0:00:30]} 0-1

[Event "FEXERJ State Masters-ch 2024"]
[Site "Rio de Janeiro"]
[Date "2024.06.01"]
[Round "3.3"]
[White "Salles, Marvio Darilho"]
[Black "Yunes, David Teles"]
[Result "1/2-1/2"]
[ECO "A34"]
[WhiteElo "2072"]
[BlackElo "1975"]
[Annotator "NA COMBH RC"]
[PlyCount "66"]
[EventDate "2024.05.15"]
[EventType "swiss"]
[EventCountry "BRA"]
[SourceTitle "playchess.com"]
[Source "ChessBase"]
[SourceQuality "1"]
[TimeControl "5400+30"]

1. e4 {[%emt 1:31:00]} c5 {[%emt 1:31:00]} 2. c4 {[%emt 0:00:00]} Nc6 {[%emt 0:00:00]} 3. Nc3 {[%emt 0:01:00]} Nf6 {[%emt 0:00:00]} 4. Be2 g6 {[%emt 0:00:00]} 5. Nf3 Bg7 {[%emt 0:00:00]} 6. O-O O-O {[%emt 0:00:00]} 7. a3 d6 {[%emt 0:03:00]} 8. d3 {[%emt 0:00:00]} Ne8 9. Bd2 {[%emt 0:00:00]} Nc7 {[%emt 0:00:00]} 10. Rb1 {[%emt 0:00:00]} a5 11. Re1 {[%emt 0:00:00]} f5 {[%emt 0:00:00]} 12. Nd5 Ne6 {[%emt 0:00:00]} 13. exf5 {[%emt 0:00:00]} gxf5 {[%emt 0:00:00]} 14. Bf1 {[%emt 0:00:00]} f4 {[%emt 0:00:00]} 15. b4 {[%emt 0:00:00]} axb4 {[%emt 0:01:07]} 16. axb4 cxb4 {[%emt 0:01:32]} 17. Nxb4 {[%emt 0:00:00]} Ned4 {[%emt 0:01:39]} 18. Nxc6 Nxc6 {[%emt 0:01:12]} 19. Qb3 {[%emt 0:08:00]} Kh8 {[%emt 0:00:00]} 20. Bc3 e5 {[%emt 0:01:00]} 21. Ra1 {[%emt 0:00:00]} Rb8 {[%emt 0:00:30]} 22. Qb2 {[%emt 0:00:00]} Bg4 {[%emt 0:00:00]} 23. Be2 {[%emt 0:00:00]} Qf6 {[%emt 0:00:19]} 24. Qb6 {[%emt 0:00:00]} Qg6 25. Rad1 {[%emt 0:03:00]} Rf7 {[%emt 0:01:41]} 26. Kh1 {[%emt 0:00:00]} Rg8 {[%emt 0:00:00]} 27. Rg1 Qh5 {[%emt 0:01:00]} 28. c5 {[%emt 0:00:00]} d5 {[%emt 0:00:00]} 29. Qb1 {[%emt 0:01:21]} Rf6 {[%emt 0:00:03]} 30. Rge1 {[%emt 0:00:24]} Rh6 {[%emt 0:00:08]} 31. Kg1 {[%emt 0:00:12]} Bf6 {[%emt 0:00:15]} 32. Qxb7 {[%emt 0:00:13]} Bxf3 {[%emt 0:00:12]} 33. Bxf3 {[%emt 0:00:56] Check Result:-#8} Qxf3 {[%emt 0:00:30]} 1/2-1/2

[Event "FEXERJ State Masters-ch 2024"]
[Site "Rio de Janeiro"]
[Date "2024.06.01"]
[Round "3.4"]
[White "Guimaraes, Wagner Peixoto"]
[Black "Pereira, Arthur Macedo"]
[Result "0-1"]
[ECO "C85"]
[WhiteElo "2142"]
[BlackElo "1899"]
[Annotator "NA RC"]
[PlyCount "66"]
[EventDate "2024.05.15"]
[EventType "swiss"]
[EventCountry "BRA"]
[SourceTitle "playchess.com"]
[Source "ChessBase"]
[SourceQuality "1"]
[TimeControl "5400+30"]

1. e4 {[%emt 1:31:00]} e5 {[%emt 1:31:00]} 2. Nf3 {[%emt 0:00:00]} Nc6 {[%emt 0:00:30]} 3. Bb5 {[%emt 0:00:00]} a6 4. Ba4 {[%emt 0:01:30]} Nf6 {[%emt 0:00:00]} 5. O-O {[%emt 0:00:00]} Be7 {[%emt 0:00:00]} 6. Bxc6 {[%emt 0:00:00]} dxc6 {[%emt 0:00:00]} 7. Qe1 {[%emt 0:00:00]} Nd7 {[%emt 0:00:00]} 8. d3 {[%emt 0:00:00]} O-O {[%emt 0:00:00]} 9. Nbd2 Re8 {[%emt 0:00:00]} 10. Nc4 {[%emt 0:00:00]} Bf6 {[%emt 0:00:00]} 11. a4 {[%emt 0:00:00]} b6 {[%emt 0:00:00]} 12. Be3 Nf8 {[%emt 0:05:00]} 13. b4 {[%emt 0:00:00]} Ng6 14. Qd2 {[%emt 0:00:00]} Be6 15. Rab1 {[%emt 0:00:00]} Bxc4 {[%emt 0:00:00]} 16. dxc4 Qe7 {[%emt 0:00:00]} 17. h3 Red8 {[%emt 0:02:30]} 18. Qe2 {[%emt 0:07:00]} Nf4 {[%emt 0:00:30]} 19. Bxf4 {[%emt 0:00:00]} exf4 {[%emt 0:00:00]} 20. e5 Qe6 {[%emt 0:00:00]} 21. Qe4 {[%emt 0:00:00]} g5 {[%emt 0:00:00]} 22. Rfe1 {[%emt 0:00:00]} Be7 23. c5 {[%emt 0:00:00]} Qg6 24. Nd4 {[%emt 0:03:00]} bxc5 {[%emt 0:00:00]} 25. Nxc6 {[%emt 0:00:00]} Qxe4 {[%emt 0:00:00]} 26. Rxe4 {[%emt 0:00:00]} Rd7 {[%emt 0:00:11]} 27. b5 {[%emt 0:00:00]} axb5 28. Rxb5 {[%emt 0:02:00]} Rd1+ {[%emt 0:01:45]} 29. Kh2 {[%emt 0:00:00]} Bf8 {[%emt 0:02:07]} 30. Rb8 {[%emt 0:00:00]} Ra6 {[%emt 0:00:31]} 31. e6 {[%emt 0:00:00]} fxe6 {[%emt 0:00:27]} 32. Rxe6 {[%emt 0:02:00]} Kf7 {[%emt 0:01:59]} 33. Rbe8 {[%emt 0:00:00]} Rxc6 {[%emt 0:00:30]} 0-1

[Event "FEXERJ State Masters-ch 2024"]
[Site "Rio de Janeiro"]
[Date "2024.06.01"]
[Round "4.2"]
[White "Pereira, Arthur Macedo"]
[Black "Salles, Marvio Darilho"]
[Result "1/2-1/2"]
[ECO "A52"]
[WhiteElo "1899"]
[BlackElo "2072"]
[Annotator "RC"]
[PlyCount "60"]
[EventDate "2024.05.15"]
[EventType "swiss"]
[EventCountry "BRA"]
[SourceTitle "playchess.com"]
[Source "ChessBase"]
[SourceQuality "1"]
[TimeControl "5400+30"]

1. d4 {[%emt 1:31:00]} Nf6 2. c4 {[%emt 0:00:00]} e5 {[%emt 0:01:40]} 3. dxe5 {[%emt 0:00:00]} Ng4 {[%emt 0:00:00]} 4. Nf3 Nc6 {[%emt 1:30:50]} 5. e3 {[%emt 0:02:00]} Bb4+ {[%emt 0:00:00]} 6. Bd2 {[%emt 0:00:00]} Qe7 7. Nc3 {[%emt 0:01:00]} Bxc3 {[%emt 0:00:00]} 8. Bxc3 {[%emt 0:00:00]} O-O {[%emt 0:02:00]} 9. Be2 {[%emt 0:01:00]} Ngxe5 {[%emt 0:00:30]} 10. Nxe5 {[%emt 0:00:00]} Nxe5 {[%emt 0:00:30]} 11. O-O {[%emt 0:00:00]} d6 {[%emt 0:00:30]} 12. Qd4 {[%emt 0:00:00]} Be6 13. c5 {[%emt 0:02:00]} f6 {[%emt 0:01:00]} 14. cxd6 {[%emt 0:00:00]} cxd6 {[%emt 0:00:30]} 15. Rfd1 {[%emt 0:00:00]} Rfd8 {[%emt 0:00:00]} 16. b3 {[%emt 0:00:00]} d5 17. Rac1 {[%emt 0:02:00]} Nc6 {[%emt 0:00:00]} 18. Qd2 {[%emt 0:00:30]} Rd7 {[%emt 0:00:00]} 19. Bb5 Rc8 {[%emt 0:02:30]} 20. Bb4 {[%emt 0:00:00]} Qe8 {[%emt 0:00:00]} 21. Bxc6 Rxc6 {[%emt 0:01:00]} 22. Rxc6 {[%emt 0:00:00]} bxc6 {[%emt 0:00:00]} 23. Qc2 {[%emt 0:02:30]} Rb7 {[%emt 0:01:00]} 24. Bc5 {[%emt 0:00:30]} Qg6 {[%emt 0:00:30]} 25. Qxg6 {[%emt 0:00:00]} hxg6 {[%emt 0:00:00]} 26. Bd4 {[%emt 0:00:00]} Rb5 {[%emt 0:00:00]} 27. Rc1 Bd7 {[%emt 0:01:30]} 28. Kf1 {[%emt 0:00:00]} Kf7 {[%emt 0:00:30]} 29. Ke2 {[%emt 0:02:30]} a6 {[%emt 0:00:30]} 30. Rc5 {[%emt 0:00:30]} Ke6 1/2-1/2

[Event "FEXERJ State Masters-ch 2024"]
[Site "Rio de Janeiro"]
[Date "2024.06.01"]
[Round "4.3"]
[White "Yunes, David Teles"]
[Black "Fernandes, Silas Carvalho"]
[Result "1/2-1/2"]
[ECO "B51"]
[WhiteElo "1975"]
[BlackElo "2043"]
[Annotator "RC"]
[PlyCount "75"]
[EventDate "2024.05.15"]
[EventType "swiss"]
[EventCountry "BRA"]
[SourceTitle "playchess.com"]
[Source "ChessBase"]
[SourceQuality "1"]
[TimeControl "5400+30"]

1. e4 {[%emt 1:31:00]} c5 {[%emt 0:00:03]} 2. Nf3 {[%emt 0:00:00]} d6 {[%emt 1:31:27]} 3. Bb5+ {[%emt 0:00:00]} Nc6 {[%emt 0:00:00]} 4. Bxc6+ bxc6 5. O-O {[%emt 0:02:00]} e6 {[%emt 0:01:30]} 6. Qe2 {[%emt 0:00:30]} Qc7 {[%emt 0:00:30]} 7. b3 {[%emt 0:00:30]} a5 {[%emt 0:00:30]} 8. Bb2 {[%emt 0:00:00]} Ne7 {[%emt 0:00:30]} 9. Rd1 {[%emt 0:00:00]} Ng6 {[%emt 0:00:00]} 10. d4 cxd4 {[%emt 0:00:00]} 11. Nxd4 Ba6 {[%emt 0:01:30]} 12. Qg4 {[%emt 0:00:00]} Be7 13. c4 {[%emt 0:03:00]} O-O {[%emt 0:01:00]} 14. Nc3 {[%emt 0:00:30]} Rfb8 {[%emt 0:00:30]} 15. Rab1 {[%emt 0:00:30]} a4 {[%emt 0:00:00]} 16. f4 axb3 {[%emt 0:00:00]} 17. axb3 {[%emt 0:00:00]} Bc8 18. Ba1 {[%emt 0:01:30]} e5 {[%emt 0:00:00]} 19. Nf5 {[%emt 0:00:30]} exf4 {[%emt 0:02:30]} 20. Ne2 {[%emt 0:00:30]} Bf8 {[%emt 0:00:30]} 21. Nxf4 {[%emt 0:00:30]} d5 {[%emt 0:00:30]} 22. Nh5 {[%emt 0:00:30]} dxc4 {[%emt 0:00:30]} 23. bxc4 {[%emt 0:00:00]} Rxb1 24. Rxb1 {[%emt 0:01:00]} Qa7+ {[%emt 0:00:00]} 25. Kf1 {[%emt 0:00:30]} Be6 {[%emt 0:01:30]} 26. Qe2 {[%emt 0:00:30]} Qc5 {[%emt 0:00:30]} 27. Bd4 {[%emt 0:00:30]} Qxc4 {[%emt 0:00:30]} 28. Qxc4 {[%emt 0:00:00]} Bxc4+ {[%emt 0:00:00]} 29. Kf2 f6 {[%emt 0:00:00]} 30. Rb7 {[%emt 0:00:00]} c5 31. Bxf6 {[%emt 0:00:00]} Ra2+ {[%emt 0:00:00]} 32. Kg3 {[%emt 0:00:00]} Ra3+ 33. Kf2 {[%emt 0:03:00]} Ra2+ {[%emt 0:00:00]} 34. Kg3 {[%emt 0:00:30]} Bf1 {[%emt 0:03:30]} 35. Ne3 Ra3 {[%emt 0:00:30]} 36. Bxg7 {[%emt 0:01:00]} Bxg7 37. Rxg7+ {[%emt 0:00:30]} Kf8 {[%emt 0:01:00]} 38. Rxh7 {[%emt 0:00:30]} 1/2-1/2